[Event "21st Indian-chT Women 2023-24"]
[Site "Dharamsala"]
[Date "2024.03.29"]
[Round "1.1"]
[White "Keshavi"]
[Black "Vishwa Vasnawala"]
[Result "0-1"]
[ECO "C50"]
[WhiteElo "1471"]
[BlackElo "2111"]
[Annotator "RC"]
[PlyCount "48"]
[EventDate "2024.03.28"]
[EventType "team-tourn"]
[EventCountry "IND"]
[SourceTitle "playchess.com"]
[Source "ChessBase"]
[SourceQuality "1"]
[TimeControl "5400+30"]

1. e4 {[%emt 0:00:31]} e5 {[%emt 0:00:04]} 2. Nf3 {[%emt 0:00:21]} Nc6 {[%emt 0:00:06]} 3. Bc4 {[%emt 0:00:32]} Bc5 {[%emt 0:00:11]} 4. O-O {[%emt 0:00:47]} Nf6 {[%emt 0:00:07]} 5. d4 {[%emt 0:01:42]} Bxd4 {[%emt 0:00:16]} 6. Nxd4 {[%emt 0:00:30]} Nxd4 {[%emt 0:00:03]} 7. f4 {[%emt 0:02:27]} d6 {[%emt 0:00:26]} 8. fxe5 {[%emt 0:00:47]} dxe5 {[%emt 0:00:02]} 9. Bg5 {[%emt 0:02:22]} Qe7 {[%emt 0:00:18]} 10. c3 {[%emt 0:07:41]} Ne6 {[%emt 0:15:25]} 11. Bxe6 {[%emt 0:09:44]} Bxe6 {[%emt 0:00:33]} 12. Bxf6 {[%emt 0:03:37]} gxf6 {[%emt 0:00:11]} 13. Qf3 {[%emt 0:01:34]} Rg8 {[%emt 0:15:04]} 14. Qxf6 {[%emt 0:11:49]} Qxf6 {[%emt 0:07:29]} 15. Rxf6 {[%emt 0:00:14]} Rd8 {[%emt 0:00:08]} 16. Na3 {[%emt 0:04:48]} Rg4 {[%emt 0:11:02]} 17. Nb5 {[%emt 0:17:49]} Ke7 {[%emt 0:02:01]} 18. Rf2 {[%emt 0:08:19]} c6 {[%emt 0:01:29]} 19. Na3 {[%emt 0:01:59]} Rxe4 {[%emt 0:00:29]} 20. Nc2 {[%emt 0:04:47]} f5 {[%emt 0:06:56]} 21. Ne1 {[%emt 0:08:49]} f4 {[%emt 0:06:22]} 22. Nf3 {[%emt 0:03:00]} Re3 {[%emt 0:02:21]} 23. Ng5 {[%emt 0:03:11]} Bf5 {[%emt 0:02:05]} 24. Raf1 {[%emt 0:03:34]} c5 {[%emt 0:07:13]} 0-1

[Event "21st Indian-chT Women 2023-24"]
[Site "Dharamsala"]
[Date "2024.03.29"]
[Round "1.2"]
[White "Gomes, Mary Ann"]
[Black "Cheryl Verma"]
[Result "1-0"]
[ECO "A09"]
[WhiteElo "2322"]
[BlackElo "1517"]
[Annotator "RC"]
[PlyCount "107"]
[EventDate "2024.03.28"]
[EventType "team-tourn"]
[EventCountry "IND"]
[SourceTitle "playchess.com"]
[Source "ChessBase"]
[SourceQuality "1"]
[TimeControl "5400+30"]

1. Nf3 {[%emt 0:00:15]} d5 {[%emt 0:01:27]} 2. c4 {[%emt 0:00:15]} Nf6 {[%emt 0:01:45]} 3. g3 {[%emt 0:00:21]} Bf5 {[%emt 0:03:35]} 4. cxd5 {[%emt 0:00:28]} Qxd5 {[%emt 0:03:24]} 5. Nc3 {[%emt 0:00:09]} Qd7 {[%emt 0:00:49]} 6. Ne5 {[%emt 0:03:39]} Qe6 {[%emt 0:10:38]} 7. d4 {[%emt 0:00:07]} Nbd7 {[%emt 0:03:03]} 8. Bg2 {[%emt 0:08:16]} Qb6 {[%emt 0:14:52]} 9. Nc4 {[%emt 0:03:46]} Qa6 {[%emt 0:04:04]} 10. Ne3 {[%emt 0:04:49]} Bg6 {[%emt 0:04:41]} 11. Ned5 {[%emt 0:03:20]} Rc8 {[%emt 0:06:32]} 12. Bf4 {[%emt 0:00:58]} e5 {[%emt 0:05:40]} 13. dxe5 {[%emt 0:01:02]} Nxd5 {[%emt 0:01:25]} 14. Qxd5 {[%emt 0:03:21]} c6 {[%emt 0:03:10]} 15. Qd2 {[%emt 0:00:21]} Rd8 {[%emt 0:02:52]} 16. Bg5 {[%emt 0:04:21]} f6 {[%emt 0:03:24]} 17. exf6 {[%emt 0:02:02]} Nxf6 {[%emt 0:03:22]} 18. Qe3+ {[%emt 0:00:28]} Be7 {[%emt 0:01:24]} 19. O-O {[%emt 0:01:58]} Qb6 {[%emt 0:03:47]} 20. Rad1 {[%emt 0:06:36]} Qxe3 {[%emt 0:02:42]} 21. Bxe3 {[%emt 0:00:08]} a6 {[%emt 0:01:22]} 22. Rxd8+ {[%emt 0:03:22]} Bxd8 {[%emt 0:01:02]} 23. Bh3 {[%emt 0:00:00]} b5 {[%emt 0:03:18]} 24. Bg2 {[%emt 0:00:55]} b4 {[%emt 0:01:56]} 25. Bxc6+ {[%emt 0:00:14]} Kf8 {[%emt 0:02:01]} 26. Na4 {[%emt 0:00:28]} Be4 {[%emt 0:01:57]} 27. Bxe4 {[%emt 0:02:00]} Nxe4 {[%emt 0:00:03]} 28. f3 {[%emt 0:00:18]} Nd6 {[%emt 0:01:45]} 29. Bc5 {[%emt 0:00:15]} Bc7 {[%emt 0:00:53]} 30. Bxb4 {[%emt 0:00:08]} a5 {[%emt 0:00:25]} 31. Rc1 {[%emt 0:00:17]} axb4 {[%emt 0:01:36]} 32. Rxc7 {[%emt 0:00:07]} Ke8 {[%emt 0:01:08]} 33. Nc5 {[%emt 0:00:22]} Rf8 {[%emt 0:01:39]} 34. Rxg7 {[%emt 0:01:05]} Rf5 {[%emt 0:01:09]} 35. Nd3 {[%emt 0:05:36]} Rb5 {[%emt 0:00:48]} 36. Rxh7 {[%emt 0:00:27]} b3 {[%emt 0:00:19]} 37. axb3 {[%emt 0:00:07]} Rxb3 {[%emt 0:00:07]} 38. h4 {[%emt 0:00:32]} Nc4 {[%emt 0:00:25]} 39. h5 {[%emt 0:02:58]} Nxb2 {[%emt 0:00:22]} 40. Nxb2 {[%emt 0:00:48]} Rxb2 {[%emt 0:00:07]} 41. h6 {[%emt 0:01:01]} Kf8 {[%emt 0:00:39]} 42. Kf2 {[%emt 0:01:16]} Kg8 {[%emt 0:00:20]} 43. Rg7+ {[%emt 0:00:06]} Kh8 {[%emt 0:00:14]} 44. Rg6 {[%emt 0:00:06]} Kh7 {[%emt 0:00:18]} 45. Re6 {[%emt 0:00:07]} Rb5 {[%emt 0:00:27]} 46. g4 {[%emt 0:00:06]} Rb1 {[%emt 0:02:30]} 47. g5 {[%emt 0:00:09]} Rh1 {[%emt 0:00:21]} 48. f4 {[%emt 0:00:25]} Rh3 {[%emt 0:01:51]} 49. Kg2 {[%emt 0:00:53]} Rc3 {[%emt 0:00:46]} 50. f5 {[%emt 0:00:31]} Rc5 {[%emt 0:00:34]} 51. Re7+ {[%emt 0:00:16]} Kh8 {[%emt 0:00:40]} 52. g6 {[%emt 0:00:11]} Rc8 {[%emt 0:00:36]} 53. f6 {[%emt 0:00:08]} Rg8 {[%emt 0:00:38]} 54. Rh7# {[%emt 0:00:08]} 1-0

[Event "21st Indian-chT Women 2023-24"]
[Site "Dharamsala"]
[Date "2024.03.29"]
[Round "1.3"]
[White "Suryanshi Sharma"]
[Black "Mohota, Nisha"]
[Result "0-1"]
[ECO "A29"]
[WhiteElo "1638"]
[BlackElo "2122"]
[Annotator "RC"]
[PlyCount "140"]
[EventDate "2024.03.28"]
[EventType "team-tourn"]
[EventCountry "IND"]
[SourceTitle "playchess.com"]
[Source "ChessBase"]
[SourceQuality "1"]
[TimeControl "5400+30"]

1. c4 {[%emt 0:01:15]} e5 {[%emt 0:00:14]} 2. Nc3 {[%emt 0:00:27]} Nf6 {[%emt 0:00:21]} 3. g3 {[%emt 0:00:35]} d5 {[%emt 0:00:21]} 4. cxd5 {[%emt 0:00:40]} Nxd5 {[%emt 0:00:13]} 5. Bg2 {[%emt 0:00:28]} Nb6 {[%emt 0:00:10]} 6. Nf3 {[%emt 0:00:56]} Nc6 {[%emt 0:00:05]} 7. d3 {[%emt 0:01:02]} Be7 {[%emt 0:00:35]} 8. O-O {[%emt 0:01:00]} O-O {[%emt 0:00:04]} 9. h4 {[%emt 0:03:36]} Bg4 {[%emt 0:08:23]} 10. Bg5 {[%emt 0:09:08]} f6 {[%emt 0:06:26]} 11. Qb3+ {[%emt 0:05:30]} Kh8 {[%emt 0:00:21]} 12. Be3 {[%emt 0:00:29]} Qd7 {[%emt 0:05:39]} 13. a3 {[%emt 0:04:21]} f5 {[%emt 0:13:03]} 14. Bxb6 {[%emt 0:11:06]} axb6 {[%emt 0:01:34]} 15. Qd5 {[%emt 0:01:51]} Qxd5 {[%emt 0:14:04]} 16. Nxd5 {[%emt 0:00:55]} Bd6 {[%emt 0:00:49]} 17. Rfe1 {[%emt 0:07:48]} b5 {[%emt 0:05:07]} 18. Nd2 {[%emt 0:07:17]} Nd4 {[%emt 0:01:32]} 19. f3 {[%emt 0:01:16]} Bh5 {[%emt 0:01:09]} 20. Rac1 {[%emt 0:01:27]} c6 {[%emt 0:03:00]} 21. Nc3 {[%emt 0:04:34]} e4 {[%emt 0:06:06]} 22. f4 {[%emt 0:02:47]} exd3 {[%emt 0:04:57]} 23. exd3 {[%emt 0:01:04]} Rad8 {[%emt 0:01:40]} 24. Kh2 {[%emt 0:01:47]} h6 {[%emt 0:00:30]} 25. Kh1 {[%emt 0:07:26]} Rf7 {[%emt 0:03:55]} 26. Re3 {[%emt 0:04:34]} Rfd7 {[%emt 0:02:09]} 27. Bf3 {[%emt 0:02:40]} Nxf3 {[%emt 0:04:33]} 28. Nxf3 {[%emt 0:00:55]} Bc5 {[%emt 0:00:09]} 29. d4 {[%emt 0:00:39]} Bxf3+ {[%emt 0:00:46]} 30. Rxf3 {[%emt 0:00:25]} Bxd4 {[%emt 0:00:30]} 31. Rc2 {[%emt 0:01:09]} Bb6 {[%emt 0:04:08]} 32. Ne2 {[%emt 0:01:53]} Kg8 {[%emt 0:02:08]} 33. Kg2 {[%emt 0:04:18]} Kf7 {[%emt 0:00:13]} 34. Kh3 {[%emt 0:00:45]} Rd2 {[%emt 0:02:39]} 35. Rfc3 {[%emt 0:03:25]} h5 {[%emt 0:02:39]} 36. Nc1 {[%emt 0:02:22]} Ba5 {[%emt 0:02:24]} 37. Rc5 {[%emt 0:01:55]} Rxc2 {[%emt 0:01:06]} 38. Rxc2 {[%emt 0:00:28]} Bb6 {[%emt 0:01:26]} 39. Re2 {[%emt 0:01:54]} g6 {[%emt 0:00:35]} 40. Rc2 {[%emt 0:00:35]} Rd1 {[%emt 0:00:59]} 41. Ne2 {[%emt 0:00:45]} Be3 {[%emt 0:01:10]} 42. Rc3 {[%emt 0:00:40]} Bb6 {[%emt 0:00:52]} 43. Rc2 {[%emt 0:00:48]} Rd6 {[%emt 0:00:26]} 44. Kg2 {[%emt 0:00:45]} Rd3 {[%emt 0:00:39]} 45. Nc1 {[%emt 0:00:35]} Rd1 {[%emt 0:00:19]} 46. Ne2 {[%emt 0:00:15]} Ke6 {[%emt 0:00:35]} 47. Kh2 {[%emt 0:00:31]} Kd7 {[%emt 0:01:14]} 48. Kg2 {[%emt 0:00:23]} Ba7 {[%emt 0:01:14]} 49. Kh2 {[%emt 0:00:23]} Bb6 {[%emt 0:00:08]} 50. Kg2 {[%emt 0:00:11]} Ba5 {[%emt 0:01:26]} 51. b4 {[%emt 0:01:44]} Bb6 {[%emt 0:00:03]} 52. Kh2 {[%emt 0:01:10]} Ra1 {[%emt 0:00:19]} 53. Rd2+ {[%emt 0:00:53]} Ke7 {[%emt 0:00:32]} 54. Kg2 {[%emt 0:01:12]} Rxa3 {[%emt 0:00:08]} 55. Nc1 {[%emt 0:00:05]} Be3 {[%emt 0:00:36]} 56. Re2 {[%emt 0:00:14]} Kd6 {[%emt 0:00:30]} 57. Na2 {[%emt 0:00:34]} Kd5 {[%emt 0:00:22]} 58. Rc2 {[%emt 0:00:38]} Kd4 {[%emt 0:00:23]} 59. Re2 {[%emt 0:00:32]} Kd3 {[%emt 0:00:38]} 60. Kf1 {[%emt 0:00:18]} Bd2 {[%emt 0:00:43]} 61. Re6 {[%emt 0:00:38]} Rxa2 {[%emt 0:00:14]} 62. Rxg6 {[%emt 0:00:06]} Bxb4 {[%emt 0:00:32]} 63. Rg5 {[%emt 0:00:11]} Ke4 {[%emt 0:00:34]} 64. Rxh5 {[%emt 0:00:09]} Kf3 {[%emt 0:00:35]} 65. Kg1 {[%emt 0:00:10]} Bc5+ {[%emt 0:00:49]} 66. Kh1 {[%emt 0:00:08]} Ra1+ {[%emt 0:00:37]} 67. Kh2 {[%emt 0:00:03]} Bg1+ {[%emt 0:00:05]} 68. Kh3 {[%emt 0:00:05]} Bf2 {[%emt 0:00:13]} 69. Kh2 {[%emt 0:00:22]} Bxg3+ {[%emt 0:00:10]} 70. Kh3 {[%emt 0:00:02]} Rh1# {[%emt 0:00:07]} 0-1

[Event "21st Indian-chT Women 2023-24"]
[Site "Dharamsala"]
[Date "2024.03.29"]
[Round "1.4"]
[White "Soumya, Swaminathan"]
[Black "Palak Thakur"]
[Result "1-0"]
[ECO "B07"]
[WhiteElo "2259"]
[BlackElo "1485"]
[Annotator "RC"]
[PlyCount "69"]
[EventDate "2024.03.28"]
[EventType "team-tourn"]
[EventCountry "IND"]
[SourceTitle "playchess.com"]
[Source "ChessBase"]
[SourceQuality "1"]
[TimeControl "5400+30"]

1. e4 {[%emt 0:00:04]} d6 {[%emt 0:00:21]} 2. d4 {[%emt 0:00:39]} Nf6 {[%emt 0:00:30]} 3. Nc3 {[%emt 0:00:28]} Bg4 {[%emt 0:01:56]} 4. f3 {[%emt 0:00:52]} Bh5 {[%emt 0:00:42]} 5. Be3 {[%emt 0:01:20]} Nbd7 {[%emt 0:00:54]} 6. g4 {[%emt 0:07:46]} Bg6 {[%emt 0:03:14]} 7. g5 {[%emt 0:00:18]} Ng8 {[%emt 0:01:59]} 8. h4 {[%emt 0:04:15]} Bh5 {[%emt 0:05:25]} 9. Bg2 {[%emt 0:10:06]} e5 {[%emt 0:03:07]} 10. Nge2 {[%emt 0:11:08]} Ne7 {[%emt 0:02:37]} 11. Ng3 {[%emt 0:00:50]} g6 {[%emt 0:05:35]} 12. Nxh5 {[%emt 0:04:10]} gxh5 {[%emt 0:00:24]} 13. f4 {[%emt 0:00:12]} Bg7 {[%emt 0:01:02]} 14. dxe5 {[%emt 0:00:47]} dxe5 {[%emt 0:00:23]} 15. f5 {[%emt 0:00:04]} Nc6 {[%emt 0:03:56]} 16. Qxh5 {[%emt 0:01:40]} Nb6 {[%emt 0:03:39]} 17. Rd1 {[%emt 0:07:54]} Nd4 {[%emt 0:06:12]} 18. O-O {[%emt 0:00:44]} Nc4 {[%emt 0:02:12]} 19. Bxd4 {[%emt 0:02:38]} exd4 {[%emt 0:00:23]} 20. f6 {[%emt 0:00:03]} Bf8 {[%emt 0:01:03]} 21. g6 {[%emt 0:00:08]} Qd7 {[%emt 0:10:45]} 22. g7 {[%emt 0:02:38]} Bxg7 {[%emt 0:01:11]} 23. fxg7 {[%emt 0:00:05]} Rg8 {[%emt 0:00:22]} 24. Nd5 {[%emt 0:00:56]} O-O-O {[%emt 0:09:58]} 25. Rxf7 {[%emt 0:03:19]} Qd6 {[%emt 0:04:37]} 26. Ne7+ {[%emt 0:00:13]} Kb8 {[%emt 0:00:45]} 27. Nxg8 {[%emt 0:00:03]} Rxg8 {[%emt 0:04:02]} 28. Rdf1 {[%emt 0:00:36]} a6 {[%emt 0:04:53]} 29. Rf8+ {[%emt 0:00:17]} Rxf8 {[%emt 0:00:12]} 30. gxf8=Q+ {[%emt 0:00:11]} Qxf8 {[%emt 0:00:13]} 31. Rxf8+ {[%emt 0:00:02]} Ka7 {[%emt 0:00:11]} 32. Qc5+ {[%emt 0:00:04]} Nb6 {[%emt 0:00:14]} 33. Qxc7 {[%emt 0:00:09]} a5 {[%emt 0:00:28]} 34. Bf1 {[%emt 0:00:38]} Na8 {[%emt 0:00:48]} 35. Qxa5# {[%emt 0:00:03]} 1-0

[Event "21st Indian-chT Women 2023-24"]
[Site "Dharamsala"]
[Date "2024.03.29"]
[Round "1.5"]
[White "Gade Sharanya"]
[Black "Jigna, Joshi"]
[Result "1-0"]
[ECO "D24"]
[WhiteElo "1728"]
[BlackElo "1610"]
[Annotator "NA"]
[PlyCount "89"]
[EventDate "2024.03.28"]
[EventType "team-tourn"]
[EventCountry "IND"]
[SourceTitle "playchess.com"]
[Source "ChessBase"]
[SourceQuality "1"]
[TimeControl "5400+30"]

1. d4 {[%emt 0:00:02]} d5 {[%emt 0:00:13]} 2. c4 {[%emt 0:00:08]} dxc4 {[%emt 0:00:06]} 3. Nf3 {[%emt 0:00:13]} Nf6 {[%emt 0:00:06]} 4. Nc3 {[%emt 0:00:16]} e6 {[%emt 0:00:08]} 5. e3 {[%emt 0:05:09]} Be7 {[%emt 0:00:20]} 6. Bxc4 {[%emt 0:00:14]} a6 {[%emt 0:00:13]} 7. O-O {[%emt 0:00:41]} O-O {[%emt 0:00:08]} 8. Qc2 {[%emt 0:01:41]} Nc6 {[%emt 0:03:07]} 9. a3 {[%emt 0:02:02]} b5 {[%emt 0:05:30]} 10. Bd3 {[%emt 0:00:16]} Bb7 {[%emt 0:00:17]} 11. Ne4 {[%emt 0:02:17]} h6 {[%emt 0:02:10]} 12. b4 {[%emt 0:01:33]} Nd5 {[%emt 0:08:10]} 13. Rd1 {[%emt 0:02:53]} Rc8 {[%emt 0:00:34]} 14. Bb2 {[%emt 0:05:46]} Bd6 {[%emt 0:05:01]} 15. Qe2 {[%emt 0:09:23]} Nce7 {[%emt 0:04:52]} 16. Nc5 {[%emt 0:10:12]} Rb8 {[%emt 0:04:56]} 17. Ne5 {[%emt 0:04:57]} Nf6 {[%emt 0:03:13]} 18. Bc2 {[%emt 0:03:37]} Qc8 {[%emt 0:00:58]} 19. Ng4 {[%emt 0:00:42]} Nxg4 {[%emt 0:03:25]} 20. Qxg4 {[%emt 0:00:14]} f5 {[%emt 0:01:20]} 21. Qe2 {[%emt 0:02:57]} Bc6 {[%emt 0:02:49]} 22. Rac1 {[%emt 0:06:18]} Ng6 {[%emt 0:08:01]} 23. Qh5 {[%emt 0:12:19]} Be8 {[%emt 0:01:06]} 24. Bb3 {[%emt 0:11:19]} Nf4 {[%emt 0:04:12]} 25. Qf3 {[%emt 0:00:32]} Bh5 {[%emt 0:01:35]} 26. Qxh5 {[%emt 0:04:39]} Nxh5 {[%emt 0:00:27]} 27. Bxe6+ {[%emt 0:00:05]} Qxe6 {[%emt 0:00:44]} 28. Nxe6 {[%emt 0:00:04]} Rfc8 {[%emt 0:00:57]} 29. Rc6 {[%emt 0:00:59]} Kf7 {[%emt 0:03:18]} 30. d5 {[%emt 0:00:23]} a5 {[%emt 0:02:57]} 31. bxa5 {[%emt 0:01:47]} b4 {[%emt 0:03:01]} 32. a4 {[%emt 0:00:23]} Nf6 {[%emt 0:01:10]} 33. Bxf6 {[%emt 0:00:45]} Kxf6 {[%emt 0:00:06]} 34. Nd4 {[%emt 0:00:45]} g6 {[%emt 0:04:13]} 35. Nb5 {[%emt 0:00:26]} Ke7 {[%emt 0:00:31]} 36. a6 {[%emt 0:01:55]} Kd7 {[%emt 0:00:58]} 37. Rdc1 {[%emt 0:00:47]} Re8 {[%emt 0:01:37]} 38. Nxd6 {[%emt 0:00:30]} cxd6 {[%emt 0:00:16]} 39. Rc7+ {[%emt 0:00:26]} Kd8 {[%emt 0:00:07]} 40. a7 {[%emt 0:00:09]} Ra8 {[%emt 0:00:24]} 41. Rb7 {[%emt 0:00:25]} b3 {[%emt 0:00:42]} 42. Rb1 {[%emt 0:00:32]} Re7 {[%emt 0:01:12]} 43. Rb8+ {[%emt 0:00:09]} Kc7 {[%emt 0:00:30]} 44. Rc1+ {[%emt 0:00:17]} Kd7 {[%emt 0:00:16]} 45. Rxa8 {[%emt 0:00:04]} 1-0

[Event "21st Indian-chT Women 2023-24"]
[Site "Dharamsala"]
[Date "2024.03.29"]
[Round "1.6"]
[White "Lakhnotra Khushali D"]
[Black "Sai Mahati Alapati"]
[Result "0-1"]
[ECO "D45"]
[WhiteElo "1602"]
[BlackElo "2155"]
[Annotator "ChessBase"]
[PlyCount "120"]
[EventDate "2024.03.28"]
[EventType "team-tourn"]
[EventCountry "IND"]
[SourceTitle "playchess.com"]
[Source "ChessBase"]
[SourceQuality "1"]
[TimeControl "5400+30"]

1. d4 {[%emt 0:00:06]} d5 {[%emt 0:00:32]} 2. c4 {[%emt 0:00:33]} c6 {[%emt 0:00:17]} 3. e3 {[%emt 0:00:19]} Nf6 {[%emt 0:00:21]} 4. Nf3 {[%emt 0:00:37]} e6 {[%emt 0:00:18]} 5. Nc3 {[%emt 0:00:44]} Nbd7 {[%emt 0:00:07]} 6. Bd2 {[%emt 0:02:38]} Be7 {[%emt 0:02:43]} 7. Be2 {[%emt 0:04:24]} O-O {[%emt 0:01:28]} 8. O-O {[%emt 0:00:12]} b6 {[%emt 0:06:05]} 9. a3 {[%emt 0:02:15]} Bb7 {[%emt 0:00:53]} 10. b4 {[%emt 0:00:25]} c5 {[%emt 0:01:35]} 11. b5 {[%emt 0:04:27]} Rc8 {[%emt 0:09:18]} 12. Qb3 {[%emt 0:04:34]} dxc4 {[%emt 0:04:08]} 13. Bxc4 {[%emt 0:00:29]} Bxf3 {[%emt 0:02:17]} 14. gxf3 {[%emt 0:01:37]} cxd4 {[%emt 0:01:21]} 15. exd4 {[%emt 0:00:33]} Qc7 {[%emt 0:06:13]} 16. Bd3 {[%emt 0:05:53]} Bd6 {[%emt 0:02:03]} 17. h3 {[%emt 0:01:28]} Bf4 {[%emt 0:01:19]} 18. Nb1 {[%emt 0:18:10]} Bxd2 {[%emt 0:01:51]} 19. Nxd2 {[%emt 0:00:25]} Qf4 {[%emt 0:01:02]} 20. Qb2 {[%emt 0:00:39]} e5 {[%emt 0:05:10]} 21. Be4 {[%emt 0:09:03]} Nxe4 {[%emt 0:07:21]} 22. fxe4 {[%emt 0:00:34]} exd4 {[%emt 0:00:12]} 23. Qxd4 {[%emt 0:02:01]} Nf6 {[%emt 0:00:44]} 24. Qe3 {[%emt 0:03:03]} Qe5 {[%emt 0:00:09]} 25. Qe2 {[%emt 0:12:07]} Rfd8 {[%emt 0:02:46]} 26. Ra2 {[%emt 0:03:31]} Qe6 {[%emt 0:00:46]} 27. Rfa1 {[%emt 0:08:13]} Qxh3 {[%emt 0:01:51]} 28. f3 {[%emt 0:02:00]} Rc5 {[%emt 0:00:36]} 29. Qg2 {[%emt 0:06:52]} Qh6 {[%emt 0:00:14]} 30. Kf2 {[%emt 0:01:16]} Rxd2+ {[%emt 0:00:28]} 31. Rxd2 {[%emt 0:00:17]} Qxd2+ {[%emt 0:00:04]} 32. Kf1 {[%emt 0:00:39]} Qd3+ {[%emt 0:00:19]} 33. Qe2 {[%emt 0:00:28]} Qxb5 {[%emt 0:00:21]} 34. Qxb5 {[%emt 0:00:18]} Rxb5 {[%emt 0:00:02]} 35. Rd1 {[%emt 0:00:31]} h5 {[%emt 0:00:05]} 36. Kg2 {[%emt 0:00:47]} h4 {[%emt 0:00:19]} 37. Rd3 {[%emt 0:01:23]} a5 {[%emt 0:00:20]} 38. Kh3 {[%emt 0:01:39]} g5 {[%emt 0:00:02]} 39. a4 {[%emt 0:00:50]} Rb4 {[%emt 0:00:02]} 40. Rd6 {[%emt 0:00:52]} Nh5 {[%emt 0:00:16]} 41. Kg4 {[%emt 0:00:33]} Ng7 {[%emt 0:00:18]} 42. Kxg5 {[%emt 0:00:21]} Rxa4 {[%emt 0:00:02]} 43. Rxb6 {[%emt 0:01:06]} Ra1 {[%emt 0:00:27]} 44. Kxh4 {[%emt 0:01:04]} a4 {[%emt 0:00:02]} 45. Ra6 {[%emt 0:00:20]} a3 {[%emt 0:00:06]} 46. Kg4 {[%emt 0:00:07]} a2 {[%emt 0:00:05]} 47. Kf4 {[%emt 0:00:52]} Ne6+ {[%emt 0:00:00]} 48. Ke5 {[%emt 0:00:28]} Nc5 {[%emt 0:00:00]} 49. Ra8+ {[%emt 0:00:24]} Kg7 {[%emt 0:00:00]} 50. Kf5 {[%emt 0:00:45]} Nb3 {[%emt 0:00:00]} 51. f4 {[%emt 0:00:43]} Nc1 {[%emt 0:00:00]} 52. e5 {[%emt 0:00:35]} Rb1 {[%emt 0:00:00]} 53. Kg5 {[%emt 0:00:46]} a1=Q {[%emt 0:00:00]} 54. Rxa1 {[%emt 0:00:07]} Rxa1 {[%emt 0:00:00]} 55. f5 {[%emt 0:00:16]} Nd3 {[%emt 0:00:00]} 56. f6+ {[%emt 0:00:38]} Kf8 {[%emt 0:00:00]} 57. Kf5 {[%emt 0:00:09]} Re1 {[%emt 0:00:00]} 58. Kg5 {[%emt 0:01:05]} Rxe5+ {[%emt 0:00:00]} 59. Kh6 {[%emt 0:00:17]} Nf4 {[%emt 0:00:00]} 60. Kh7 {[%emt 0:00:24]} Rh5# {[%emt 0:00:00]} 0-1

[Event "21st Indian-chT Women 2023-24"]
[Site "Dharamsala"]
[Date "2024.03.29"]
[Round "1.7"]
[White "Kirthika B"]
[Black "Pancholi Priyanka"]
[Result "1-0"]
[ECO "C87"]
[WhiteElo "1791"]
[BlackElo "1414"]
[Annotator "NA RC"]
[PlyCount "79"]
[EventDate "2024.03.28"]
[EventType "team-tourn"]
[EventCountry "IND"]
[SourceTitle "playchess.com"]
[Source "ChessBase"]
[SourceQuality "1"]
[TimeControl "5400+30"]

1. e4 {[%emt 0:00:04]} e5 {[%emt 0:00:12]} 2. Nf3 {[%emt 0:00:11]} Nc6 {[%emt 0:00:12]} 3. Bb5 {[%emt 0:00:08]} d6 {[%emt 0:00:28]} 4. O-O {[%emt 0:00:23]} Nf6 {[%emt 0:00:32]} 5. Re1 {[%emt 0:02:12]} Be7 {[%emt 0:00:28]} 6. c3 {[%emt 0:02:13]} a6 {[%emt 0:00:51]} 7. Ba4 {[%emt 0:00:48]} b5 {[%emt 0:00:44]} 8. Bc2 {[%emt 0:00:18]} O-O {[%emt 0:00:46]} 9. h3 {[%emt 0:03:51]} Bd7 {[%emt 0:04:10]} 10. d3 {[%emt 0:01:25]} h6 {[%emt 0:02:02]} 11. Nbd2 {[%emt 0:00:49]} Qc8 {[%emt 0:04:08]} 12. Nf1 {[%emt 0:01:48]} Kh7 {[%emt 0:08:17]} 13. Ng3 {[%emt 0:03:39]} g6 {[%emt 0:08:08]} 14. d4 {[%emt 0:05:12]} Bd8 {[%emt 0:01:11]} 15. Bd2 {[%emt 0:04:35]} Nh5 {[%emt 0:05:02]} 16. Nxh5 {[%emt 0:07:28]} gxh5 {[%emt 0:00:46]} 17. Nh2 {[%emt 0:04:51]} Bg5 {[%emt 0:10:02]} 18. Bxg5 {[%emt 0:00:38]} Rg8 {[%emt 0:01:24]} 19. Bh4 {[%emt 0:04:10]} Bxh3 {[%emt 0:01:30]} 20. g3 {[%emt 0:00:42]} Bg4 {[%emt 0:02:16]} 21. Nxg4 {[%emt 0:01:23]} Rxg4 {[%emt 0:05:00]} 22. Kh2 {[%emt 0:02:52]} Qg8 {[%emt 0:05:34]} 23. d5 {[%emt 0:02:04]} Na5 {[%emt 0:01:08]} 24. Qf3 {[%emt 0:01:01]} Nc4 {[%emt 0:02:26]} 25. Qf5+ {[%emt 0:01:27]} Qg6 {[%emt 0:01:29]} 26. f3 {[%emt 0:03:23]} Qxf5 {[%emt 0:03:54]} 27. exf5 {[%emt 0:00:41]} Rxh4+ {[%emt 0:03:32]} 28. gxh4 {[%emt 0:00:15]} f6 {[%emt 0:00:29]} 29. b3 {[%emt 0:00:40]} Nd2 {[%emt 0:00:46]} 30. Re3 {[%emt 0:00:28]} Kg7 {[%emt 0:05:05]} 31. Rd1 {[%emt 0:00:10]} Nc4 {[%emt 0:06:15]} 32. bxc4 {[%emt 0:00:09]} bxc4 {[%emt 0:00:05]} 33. Rg1+ {[%emt 0:00:08]} Kf7 {[%emt 0:01:53]} 34. f4 {[%emt 0:00:30]} exf4 {[%emt 0:00:41]} 35. Re6 {[%emt 0:00:07]} f3 {[%emt 0:01:49]} 36. Bd1 {[%emt 0:00:27]} Rb8 {[%emt 0:01:00]} 37. Bxf3 {[%emt 0:00:06]} Rb2+ {[%emt 0:00:12]} 38. Kh3 {[%emt 0:00:07]} Rxa2 {[%emt 0:00:49]} 39. Bxh5+ {[%emt 0:00:06]} Kf8 {[%emt 0:00:53]} 40. Re8# {[%emt 0:00:05]} 1-0

[Event "21st Indian-chT Women 2023-24"]
[Site "Dharamsala"]
[Date "2024.03.30"]
[Round "2.1"]
[White "Vishwa Vasnawala"]
[Black "Singh, Neha"]
[Result "1/2-1/2"]
[ECO "E65"]
[WhiteElo "2111"]
[BlackElo "1825"]
[Annotator "RC"]
[PlyCount "43"]
[EventDate "2024.03.28"]
[EventType "team-tourn"]
[EventCountry "IND"]
[SourceTitle "playchess.com"]
[Source "ChessBase"]
[SourceQuality "1"]
[TimeControl "5400+30"]

1. d4 {[%emt 0:00:03]} g6 {[%emt 0:00:10]} 2. c4 {[%emt 0:00:13]} Nf6 {[%emt 0:00:06]} 3. g3 {[%emt 0:00:15]} Bg7 {[%emt 0:00:02]} 4. Bg2 {[%emt 0:00:33]} O-O {[%emt 0:00:07]} 5. Nf3 {[%emt 0:00:30]} d6 {[%emt 0:00:21]} 6. Nc3 {[%emt 0:00:39]} Nbd7 {[%emt 0:00:21]} 7. O-O {[%emt 0:00:15]} c5 {[%emt 0:01:52]} 8. d5 {[%emt 0:00:56]} Re8 {[%emt 0:00:34]} 9. Qc2 {[%emt 0:15:38]} a6 {[%emt 0:04:10]} 10. a4 {[%emt 0:05:17]} b6 {[%emt 0:00:44]} 11. Rd1 {[%emt 0:03:26]} Nf8 {[%emt 0:01:46]} 12. h3 {[%emt 0:07:00]} h6 {[%emt 0:09:34]} 13. e4 {[%emt 0:04:06]} Qc7 {[%emt 0:02:25]} 14. Be3 {[%emt 0:04:20]} Rb8 {[%emt 0:00:56]} 15. Rab1 {[%emt 0:11:28]} Bd7 {[%emt 0:04:07]} 16. Bf1 {[%emt 0:01:55]} g5 {[%emt 0:05:48]} 17. Ne1 {[%emt 0:07:15]} e6 18. dxe6 {[%emt 0:00:30]} Nxe6 19. Nd5 {[%emt 0:00:30]} Nxd5 20. cxd5 {[%emt 0:00:30]} Nf8 21. b4 {[%emt 0:00:30]} Qc8 22. bxc5 {[%emt 0:00:30]} 1/2-1/2